[Event "Srdja Dragasevic Memorial-A 2024"]
[Site "Cetinje"]
[Date "2024.06.23"]
[Round "3.1"]
[White "Kalezic, Blazo"]
[Black "Karthik Venkataraman"]
[Result "1/2-1/2"]
[ECO "B30"]
[WhiteElo "2398"]
[BlackElo "2590"]
[Annotator "TA"]
[PlyCount "106"]
[EventDate "2024.06.23"]
[EventType "swiss"]
[EventCountry "MNE"]
[SourceTitle "playchess.com"]
[Source "ChessBase"]
[SourceQuality "1"]
[TimeControl "40/5400+30:1800+30"]

{[%evp 43,106,-17,-14,0,0,0,0,0,0,0,11,6,0,0,0,0,0,-37,-28,-28,-12,-8,0,0,0,0,0,-77,-10,-23,0,0,0,0,-14,-56,-67,-57,-68,-117,-29,-550,-544,-535,-371,-356,0,0,0,0,0,0,0,0,0,0,0,0,0,0,0,0,0,0,0]} 1. e4 {[%emt 0:00:52]} c5 {[%emt 0:00:05]} 2. Nf3 {[%emt 0:00:20]} Nc6 {[%emt 0:00:07]} 3. Nc3 {[%emt 0:01:37]} Nf6 {[%emt 0:00:06]} 4. Bb5 {[%emt 0:00:34]} Qc7 {[%emt 0:00:07]} 5. O-O {[%emt 0:00:58]} Nd4 {[%emt 0:00:20]} 6. Re1 {[%emt 0:06:56]} a6 {[%emt 0:00:09]} 7. Bf1 {[%emt 0:00:36] B30: Sicilian: 2...Nc6 3 Bb5, lines without ...g6.} Ng4 {[%emt 0:00:19]} 8. g3 {[%emt 0:01:30]} Nxf3+ {[%emt 0:00:18]} 9. Qxf3 {[%emt 0:00:08]} Ne5 {[%emt 0:00:05]} 10. Qd1 {[%emt 0:00:53]} e6 {[%emt 0:00:12]} 11. Bg2 {[%emt 0:03:31]} Be7 {[%emt 0:01:52]} 12. a4 {[%emt 0:02:17]} d6 {[%emt 0:01:50]} 13. d3 {[%emt 0:00:42]} Rb8 {[%emt 0:01:23]} 14. f4 {[%emt 0:03:16]} Nc6 {[%emt 0:00:14]} 15. Be3 {[%emt 0:00:32]} b5 {[%emt 0:02:28]} 16. axb5 {[%emt 0:00:23]} axb5 {[%emt 0:00:03]} 17. Ne2 {[%emt 0:02:22]} O-O {[%emt 0:04:20]} 18. d4 $146 {[%emt 0:03:11]} ({Predecessor:} 18. c3 Bb7 19. Qc2 Rfc8 20. d4 Na5 21. dxc5 dxc5 22. b3 h6 23. Red1 Rd8 24. Rxd8+ Rxd8 {0-1 Vantika,A (2362)-Zhigalko,S (2572) Speed Chess Q1 blitz 2022 (10)}) 18... Bb7 {[%emt 0:03:30]} 19. Qd2 {[%emt 0:04:21]} Ra8 {[%emt 0:02:35]} 20. Bf2 {[%emt 0:00:25]} b4 {[%emt 0:04:55]} 21. h4 {[%emt 0:07:24]} Rfd8 {[%emt 0:05:12]} 22. h5 {[%emt 0:01:02]} h6 {[%emt 0:02:47]} 23. Rxa8 {[%emt 0:09:00]} Rxa8 {[%emt 0:01:04]} 24. d5 {[%emt 0:00:12]} exd5 {[%emt 0:01:45]} 25. exd5 {[%emt 0:00:08]} Na5 {[%emt 0:00:04]} 26. b3 {[%emt 0:00:08]} Bf6 {[%emt 0:00:07]} 27. g4 {[%emt 0:00:29]} Qd8 {[%emt 0:02:20]} 28. Be3 {[%emt 0:01:11]} Bh4 {[%emt 0:00:14]} 29. Rf1 {[%emt 0:02:25]} Qe7 {[%emt 0:04:40]} 30. Rf3 {[%emt 0:01:43]} Bc8 {[%emt 0:05:50]} 31. f5 $1 {[%emt 0:03:05]} Ba6 {[%emt 0:01:23]} 32. Ng3 {[%emt 0:08:41]} Re8 {[%emt 0:02:16]} 33. Kh2 {[%emt 0:01:16]} Bf6 {[%emt 0:01:23]} 34. Kh3 $1 {[%emt 0:03:20]} Bc3 {[%emt 0:09:43]} 35. Qd1 {[%emt 0:11:29] [#]} (35. f6 $11 Bxf6 36. Bxh6) 35... Qf6 {[%emt 0:01:10]} (35... Qxe3 $1 $17 36. Rxe3 Rxe3) 36. Qc1 $11 {[%emt 0:02:04]} Bb2 {[%emt 0:17:54]} 37. Qd2 {[%emt 0:00:24]} Bc3 {[%emt 0:00:20]} 38. Qc1 {[%emt 0:00:08]} c4 {[%emt 0:05:08]} 39. g5 {[%emt 0:01:49]} hxg5 {[%emt 0:00:06]} 40. Bxg5 {[%emt 0:00:00]} Qd4 $1 {[%emt 0:00:00]} 41. Rf4 {[%emt 0:03:04] [#]} (41. Re3 $15 Bb5 42. Rxe8+ Bxe8 43. Be3) 41... Qb6 {[%emt 0:00:07]} (41... Qa7 $1 $17 {aiming for ...Re1.} 42. Qd1 f6 (42... Re1 43. Qg4 $15)) 42. f6 $2 {[%emt 0:06:26][%mdl 8192]} (42. Qd1 $11 cxb3 (42... Re1 43. Qg4 $16) 43. cxb3) 42... Bc8+ $19 {[%emt 0:04:29]} 43. Kh4 {[%emt 0:01:30]} Re1 {[%emt 0:02:32]} 44. Re4 {[%emt 0:01:02]} Qg1 $2 {[%emt 0:02:54]} (44... Rxc1 45. Re8+ Kh7 46. Be4+ g6 47. Bxg6+ fxg6 48. Re7+ Kg8 49. Re8+ Kh7 (49... Kf7 50. Re7+ Kg8 51. Re8+ Kf7 52. Re7+ Kg8 $11) 50. Re7+ Kg8 51. Re8+ Kh7 $11 (51... Kf7 52. Re7+ Kg8 $11)) ({Better is} 44... Rxe4+ $19 45. Nxe4 cxb3 46. cxb3 Nxb3) 45. Re8+ $1 $11 {[%emt 0:02:05]} Kh7 {[%emt 0:00:05]} 46. Rxc8 {[%emt 0:00:22]} (46. Be4+ $2 Rxe4+ 47. Nxe4 Qh2#) 46... Be5 {[%emt 0:33:38]} (46... Rxc1 $2 {loses.} 47. Be4+ g6 48. hxg6+ fxg6 49. Rc7+ Kg8 50. f7+ (50. Rc8+ Kf7 $18) 50... Kf8 51. Bxg6 Qd4+ (51... Kg7 52. Bh6+ Kxh6 53. f8=Q+ Kxg6 54. Qg8+ Kh6 55. Qh7#) 52. Kh3 Qh8+ 53. Kg4 $18 (53. Bh5 Rh1+ 54. Kg4 Qd4+ 55. Kf5 Qxd5+ 56. Kg6 Qe6+ 57. Kh7 Rxh5+ 58. Nxh5 Qf5+ 59. Kh6 Nc6 $19) (53. Bh5 $2 Rh1+ 54. Kg2 Rxh5 $19)) 47. Qxe1 {[%emt 0:02:21]} ({But not} 47. Be4+ $2 Rxe4+ 48. Nxe4 Qh2+ 49. Kg4 Qg2+ (49... cxb3 50. Qf1 g6 51. hxg6+ fxg6 52. Bh4) 50. Kh4 Qxe4+ $19) 47... Qxe1 {[%emt 0:00:03]} 48. Be4+ {[%emt 0:00:11]} g6 {[%emt 0:00:02]} 49. hxg6+ {[%emt 0:00:14]} fxg6 {[%emt 0:00:03]} 50. Rc7+ {[%emt 0:00:14]} Kh8 $1 {[%emt 0:00:04]} 51. Rc8+ {[%emt 0:00:08]} Kh7 {[%emt 0:00:04]} 52. Rc7+ {[%emt 0:00:16]} Kh8 $1 {[%emt 0:00:05]} 53. Rc8+ {[%emt 0:00:10]} Kh7 {[%emt 0:00:10]} 1/2-1/2

[Event "Srdja Dragasevic Memorial-A 2024"]
[Site "Cetinje"]
[Date "2024.06.23"]
[Round "3.2"]
[White "Saraci, Nderim"]
[Black "Skvortsov, Andrei"]
[Result "1-0"]
[ECO "D02"]
[WhiteElo "2449"]
[BlackElo "2331"]
[Annotator "TA"]
[PlyCount "101"]
[EventDate "2024.06.23"]
[EventType "swiss"]
[EventCountry "MNE"]
[SourceTitle "playchess.com"]
[Source "ChessBase"]
[SourceQuality "1"]
[TimeControl "40/5400+30:1800+30"]

{[%evp 9,101,18,26,30,38,39,40,40,39,44,33,39,49,35,78,79,88,87,90,62,129,124,201,189,376,370,345,161,143,152,146,158,167,134,134,153,152,149,136,140,153,137,211,223,220,223,241,250,242,252,235,243,261,224,316,218,241,241,247,255,240,241,244,239,236,246,260,241,320,291,293,318,427,427,427,412,427,427,423,423,420,420,408,405,1200,1192,1178,1162,1067,261,860,815,703,637]} 1. Nf3 {[%emt 0:00:06]} d5 {[%emt 0:03:01]} 2. g3 {[%emt 0:01:13]} g6 {[%emt 0:00:08]} 3. Bg2 {[%emt 0:01:53]} Bg7 {[%emt 0:00:03]} 4. d4 {[%emt 0:03:35]} e6 {[%emt 0:03:09]} 5. Nbd2 {[%emt 0:08:41]} Nc6 {[%emt 0:01:25]} 6. c3 {[%emt 0:02:05]} f5 {[%emt 0:03:38]} 7. Nb3 {[%emt 0:08:44]} Nf6 {[%emt 0:00:16]} 8. Nc5 {[%emt 0:01:02] White is slightly better.} O-O {[%emt 0:01:09]} 9. h4 {[%emt 0:03:40]} a5 {[%emt 0:02:39]} 10. Bf4 {[%emt 0:04:26]} Qe7 {[%emt 0:03:30]} 11. Qc1 {[%emt 0:00:47]} Re8 {[%emt 0:04:26]} 12. Nd3 {[%emt 0:01:10] White is more active.} Nh5 {[%emt 0:04:41]} 13. Bg5 {[%emt 0:03:14]} Qf7 {[%emt 0:01:59]} 14. Qe3 {[%emt 0:15:59]} Qf8 {[%emt 0:00:07]} (14... b6 $14) 15. Nf4 $16 {[%emt 0:03:47]} Nf6 {[%emt 0:08:17]} (15... a4 $16) 16. h5 $18 {[%emt 0:02:55]} Qf7 {[%emt 0:06:11]} (16... Ng4 17. Qc1 gxh5) 17. hxg6 {[%emt 0:00:52]} hxg6 {[%emt 0:00:03]} 18. Nd3 {[%emt 0:03:11]} (18. Bxf6 $142 Qxf6 19. Nxd5) 18... Ng4 {[%emt 0:00:43]} 19. Qd2 {[%emt 0:00:18]} e5 {[%emt 0:05:52]} 20. Ndxe5 {[%emt 0:02:40]} Ncxe5 {[%emt 0:00:26]} 21. Nxe5 {[%emt 0:00:26]} (21. dxe5 Nxe5 22. Nxe5 Rxe5 $16) 21... Nxe5 {[%emt 0:03:58]} 22. dxe5 {[%emt 0:00:06]} Rxe5 {[%emt 0:01:08]} 23. Be3 {[%emt 0:10:17]} c6 {[%emt 0:01:20]} 24. Bd4 {[%emt 0:01:41]} Re7 {[%emt 0:00:16]} 25. O-O-O {[%emt 0:01:41] Strongly threatening Qg5.} Qe6 {[%emt 0:02:09]} (25... Bxd4 $16 26. Qxd4 Qg7) 26. Bxg7 {[%emt 0:03:12]} Rxg7 {[%emt 0:00:10] [#]} 27. c4 $1 {[%emt 0:01:25][%cal Rc4d5][%mdl 512]} Qe7 {[%emt 0:06:52]} (27... Qe8 28. cxd5) 28. cxd5 {[%emt 0:00:55]} cxd5 {[%emt 0:00:11]} 29. Bxd5+ {[%emt 0:02:43]} Be6 {[%emt 0:00:05]} 30. Kb1 {[%emt 0:00:50]} Bxd5 {[%emt 0:02:18]} 31. Qxd5+ {[%emt 0:00:02]} Rf7 {[%emt 0:00:28]} (31... Qf7 {keeps fighting.} 32. Qd2 Qe6) 32. Rh6 {[%emt 0:01:16]} Kg7 {[%emt 0:01:58]} 33. Rdh1 $40 {[%emt 0:01:51][%mdl 128] White wants a kill.} Qe4+ {[%emt 0:13:47]} 34. Qxe4 {[%emt 0:00:26]} fxe4 {[%emt 0:00:03][%mdl 4096] Endgame. KRR-KRR} 35. Rh7+ {[%emt 0:00:26]} Kf6 {[%emt 0:00:04][%cal Bg7f6,Bf6f7,Bf7e6,Be6d5,Bd5c5,Bc5b4,Bb4b5,Bb5a5][%mdl 32]} 36. Rxf7+ {[%emt 0:02:32]} Kxf7 {[%emt 0:00:01] KR-KR} 37. Rh7+ {[%emt 0:01:40]} Ke6 {[%emt 0:00:01]} 38. Rxb7 {[%emt 0:00:51]} Rf8 {[%emt 0:00:01] [#]} 39. f3 {[%emt 0:02:28]} exf3 {[%emt 0:00:48]} (39... Rh8 40. fxe4) 40. Rb6+ {[%emt 0:00:00]} Kd5 {[%emt 0:00:00]} 41. exf3 {[%emt 0:00:19]} (41. Rxg6 {is a self mate.} fxe2 42. Kc2 e1=Q (42... e1=B 43. a3 $17) 43. Rg5+ Kd4 44. Rg4+ Ke3 45. Kb3 Qd1+ 46. Ka3 Qxg4 47. Kb3 Qb4+ (47... Qxg3 {leads to mate.} 48. Kc4 Qc7+ 49. Kb5 Rb8+ 50. Ka4 Qc4+ 51. Kxa5 Qxa2#) 48. Kc2 Rf2+ 49. Kd1 Qd2#) 41... Rxf3 {[%emt 0:02:19]} 42. Rxg6 {[%emt 0:00:27]} Kc5 {[%emt 0:06:32]} 43. Rg5+ {[%emt 0:03:42]} Kb4 {[%emt 0:00:29]} 44. Rg4+ {[%emt 0:00:23]} Kb5 {[%emt 0:01:34]} 45. a3 {[%emt 0:00:56]} Rf2 {[%emt 0:01:08]} 46. Ka2 {[%emt 0:02:57]} a4 {[%emt 0:01:46]} (46... Rg2 $142 47. a4+ Kb6) 47. Rb4+ {[%emt 0:00:15]} Ka5 {[%emt 0:00:07]} 48. Kb1 {[%emt 0:00:06]} Rf3 {[%emt 0:04:22]} 49. g4 {[%emt 0:00:36]} Rd3 $2 {[%emt 0:00:33]} (49... Rf2 50. Kc1 Rg2) 50. Kc2 {[%emt 0:00:30]} Rd5 {[%emt 0:00:37]} 51. Rf4 {[%emt 0:00:28] Weighted Error Value: White=0.12 (very precise) /Black=0.30.  Mistake:       	White=1     	Black=6      Inaccurate:     	White=2     	Black=3      OK:         	White=19    	Black=4      Best:        	White=6     	Black=4} 1-0

[Event "Srdja Dragasevic Memorial-A 2024"]
[Site "Cetinje"]
[Date "2024.06.23"]
[Round "3.3"]
[White "Mammadova, Narmin"]
[Black "Milanovic, Danilo"]
[Result "1/2-1/2"]
[ECO "B01"]
[WhiteElo "2277"]
[BlackElo "2438"]
[Annotator "TA"]
[PlyCount "99"]
[EventDate "2024.06.23"]
[EventType "swiss"]
[EventCountry "MNE"]
[SourceTitle "playchess.com"]
[Source "ChessBase"]
[SourceQuality "1"]
[TimeControl "40/5400+30:1800+30"]

{[%evp 9,99,39,65,51,57,38,70,70,65,68,70,65,63,73,64,73,99,93,85,49,56,45,52,47,42,60,89,43,73,68,85,78,68,67,79,79,81,53,29,45,48,20,93,98,102,0,0,0,0,-31,-54,-54,131,152,154,130,129,117,91,104,208,197,197,181,173,153,130,101,98,100,129,112,171,88,168,160,159,172,151,158,225,220,215,214,221,0,118,0,201,0,132,0]} 1. e4 {[%emt 1:31:00]} d5 {[%emt 0:05:28]} 2. exd5 {[%emt 0:00:00]} Qxd5 {[%emt 0:00:21]} 3. Nc3 {[%emt 0:00:00]} Qd6 {[%emt 0:00:13]} 4. d4 {[%emt 0:00:00]} Nf6 {[%emt 0:00:55]} 5. Nf3 {[%emt 0:00:00]} g6 {[%emt 0:00:31]} 6. Nb5 {[%emt 0:00:00]} Qd8 {[%emt 0:00:13]} 7. c4 {[%emt 0:00:00]} Bg7 {[%emt 0:00:12]} 8. Bf4 {[%emt 0:00:00] White is slightly better.} Na6 {[%emt 0:00:13]} 9. Be2 {[%emt 0:00:00]} O-O {[%emt 0:00:48]} 10. O-O {[%emt 0:00:00]} Bf5 {[%emt 0:09:04]} 11. h3 {[%emt 0:00:00]} c6 {[%emt 0:02:17][%cal Bc7c6,Bc6c5][%mdl 32]} 12. Nc3 {[%emt 0:00:00]} Ne4 {[%emt 0:00:12]} 13. Re1 {[%emt 0:00:00]} c5 {[%emt 0:20:32][%cal Rc5d4]} 14. Bd3 {[%emt 0:00:00]} Nxc3 {[%emt 0:22:45]} 15. bxc3 {[%emt 0:00:00] Black must now prevent Bxf5.} Bxd3 {[%emt 0:02:46]} 16. Qxd3 {[%emt 0:00:00]} cxd4 {[%emt 0:04:10]} 17. cxd4 {[%emt 0:00:00]} Nb4 {[%emt 0:01:08]} 18. Qe2 {[%emt 0:00:00]} (18. Qb3 $16 Nc6 19. Rad1 (19. Qxb7 Nxd4 20. Rac1 Ne6 $16)) 18... e6 {[%emt 0:02:37][%cal Oa8c8]} 19. Rad1 {[%emt 0:00:00][%cal Od4d5]} Re8 {[%emt 0:08:33]} 20. Qd2 {[%emt 0:00:00]} Na6 {[%emt 0:05:24]} 21. Be5 {[%emt 0:00:00]} Rc8 {[%emt 0:00:56]} 22. Bxg7 {[%emt 0:00:00]} Kxg7 {[%emt 0:00:02]} 23. d5 {[%emt 0:00:00] d6 is the strong threat.} Nc5 $1 {[%emt 0:07:11]} 24. d6 {[%emt 0:00:00]} Rf8 {[%emt 0:00:12]} 25. Qd4+ {[%emt 0:00:00]} Kg8 {[%emt 0:04:11]} (25... f6 $1 $11 {keeps the balance.}) 26. Ne5 $16 {[%emt 0:00:00] Hoping for d7. White is much more active.} f6 {[%emt 0:01:20]} 27. Ng4 {[%emt 0:00:00]} ({White must play} 27. Nd3 $16 Nxd3 28. Rxd3) 27... Kg7 {[%emt 0:00:08]} 28. f4 {[%emt 0:00:00]} b6 {[%emt 0:01:24]} 29. f5 {[%emt 0:04:53]} gxf5 {[%emt 0:00:25]} 30. Ne3 {[%emt 0:00:32]} (30. d7 $2 Rc7 (30... fxg4 $2 31. Qxg4+ Kh8 32. dxc8=R $18) 31. Nf2 Rxd7 $19) 30... Qd7 $2 {[%emt 0:00:47] [#]} (30... Rf7 $15 {stays ahead.}) 31. Nxf5+ $1 {[%emt 0:00:12][%mdl 512]} Kh8 {[%emt 0:00:04] [#]} 32. Qh4 $1 {[%emt 0:02:06]} Rce8 {[%emt 0:00:51]} (32... exf5 $2 {perishes.} 33. Re7 Rf7 34. Rde1 $18 (34. Rxd7 Nxd7 35. Qh5 Kg8 $18)) (32... Qf7 33. Ne7) 33. Ne7 {[%emt 0:00:57]} Rf7 {[%emt 0:00:05]} 34. Rf1 {[%emt 0:01:09][%cal Oh4h5]} Kg7 {[%emt 0:00:51]} (34... e5 $16 35. Rd5 (35. Rxf6 Rfxe7 36. dxe7 Qxd1+ $11) 35... Rexe7) 35. Rd4 {[%emt 0:01:39] White threatens Rg4+ and mate.} Rexe7 {[%emt 0:00:26]} 36. dxe7 {[%emt 0:01:38]} Qxe7 {[%emt 0:00:02]} 37. Qg3+ {[%emt 0:00:11]} Kh8 {[%emt 0:00:12]} 38. Rg4 {[%emt 0:01:38]} Rf8 {[%emt 0:00:31] Inhibits Rg8+.} 39. Kh1 $36 {[%emt 0:01:26][%mdl 2048] Keeping Black busy.} f5 {[%emt 0:01:27]} 40. Rd4 {[%emt 0:00:00]} Qg7 {[%emt 0:00:00]} (40... h6 $16 41. Qe5+ Qg7 42. Qxg7+ Kxg7) 41. Qxg7+ $1 $18 {[%emt 0:15:21]} Kxg7 {[%emt 0:02:25][%mdl 4096] Endgame. [#] KRR-KRN} 42. g4 $1 {[%emt 0:02:09]} Kf6 {[%emt 0:00:25]} 43. gxf5 {[%emt 0:01:16]} exf5 {[%emt 0:00:16]} 44. Kh2 {[%emt 0:05:03]} Ke5 {[%emt 0:04:22]} (44... Ke6 $16 45. Rfd1 Ne4) 45. Rd5+ {[%emt 0:00:40]} Ke4 {[%emt 0:00:05]} 46. Re1+ {[%emt 0:01:12]} Kf3 {[%emt 0:00:23] [#]} 47. Rf1+ {[%emt 0:03:02]} (47. Rde5 $1 $18 {[%cal Re1f1]} Kf4 48. Re7) 47... Ke4 $1 $16 {[%emt 0:00:13]} 48. Re1+ {[%emt 0:04:28]} (48. Rg1 $16) 48... Kf3 $1 $18 {[%emt 0:00:02]} 49. Rf1+ {[%emt 0:00:06]} Ke4 $1 {[%emt 0:00:05]} 50. Re1+ {[%emt 0:00:21] Weighted Error Value: White=0.24 (precise) /Black=0.16 (very precise) .  Mistake:       	White=5     	Black=5      Inaccurate:     	White=5     	Black=5      OK:         	White=16    	Black=12     Best:        	White=1     	Black=3      Strong:       	White=2     	Black=4      Brilliant:      	White=1     	---} (50. Rfd1 $16) 1/2-1/2

[Event "Srdja Dragasevic Memorial-A 2024"]
[Site "Cetinje"]
[Date "2024.06.23"]
[Round "3.4"]
[White "Petrov, Nikita"]
[Black "Xie, Bryan"]
[Result "1-0"]
[ECO "B44"]
[WhiteElo "2566"]
[BlackElo "2281"]
[Annotator "TA"]
[PlyCount "87"]
[EventDate "2024.06.23"]
[EventType "swiss"]
[EventCountry "MNE"]
[SourceTitle "playchess.com"]
[Source "ChessBase"]
[SourceQuality "1"]
[TimeControl "40/5400+30:1800+30"]

{[%evp 9,87,7,14,15,11,12,16,0,21,14,25,18,24,25,34,14,27,16,20,20,66,54,71,56,64,54,68,60,60,67,68,75,96,100,81,86,142,89,79,66,143,133,141,77,157,145,133,106,118,138,127,118,116,120,120,113,390,368,386,395,395,388,378,378,365,239,371,350,261,242,393,432,432,449,943,206,1239,1395,29971,251]} 1. e4 {[%emt 0:04:49]} c5 {[%emt 0:03:31]} 2. Nf3 {[%emt 0:00:10]} e6 {[%emt 0:00:06][%cal Be7e6,Be6e5][%mdl 32]} 3. d4 {[%emt 0:00:16]} cxd4 {[%emt 0:00:05]} 4. Nxd4 {[%emt 0:00:07]} Nc6 {[%emt 0:00:03]} 5. Bf4 {[%emt 0:00:45]} d6 {[%emt 0:00:05]} 6. Nxc6 {[%emt 0:00:11]} bxc6 {[%emt 0:00:04]} 7. c4 {[%emt 0:00:33]} e5 {[%emt 0:00:26]} 8. Be3 {[%emt 0:00:25] The position is equal.} Nf6 {[%emt 0:00:07]} 9. Nc3 {[%emt 0:00:50]} Be7 {[%emt 0:01:48]} 10. Be2 {[%emt 0:01:51]} O-O {[%emt 0:01:20]} 11. O-O {[%emt 0:00:19]} Be6 {[%emt 0:02:00]} 12. Qa4 {[%emt 0:01:53]} Qc7 {[%emt 0:03:16]} 13. Rac1 {[%emt 0:09:50][%cal Oc3d5]} Qb7 {[%emt 0:04:38]} 14. b4 {[%emt 0:03:00]} d5 {[%emt 0:02:12]} (14... Rfb8 $11 {might be stronger.}) 15. cxd5 $14 {[%emt 0:04:52]} cxd5 {[%emt 0:00:07]} 16. exd5 {[%emt 0:01:04]} Nxd5 {[%emt 0:00:13]} 17. Nxd5 {[%emt 0:00:14]} Bxd5 {[%emt 0:00:26]} 18. Rfd1 $1 {[%emt 0:00:40] [#] Ba6 would now be deadly.} Rfd8 {[%emt 0:10:54][%cal Bf8d8,Bd8d6,Bd6b6,Bb6b8][%mdl 32]} 19. a3 {[%emt 0:05:50][%cal Ba2a3,Ba3a4,Ba4a5][%mdl 32]} a6 {[%emt 0:23:07]} 20. Bf1 {[%emt 0:08:42]} Rd6 {[%emt 0:15:42]} 21. Qa5 {[%emt 0:04:45]} Bd8 {[%emt 0:02:58] Inhibits Rc7.} 22. Qc5 {[%emt 0:01:02]} Qd7 {[%emt 0:00:49]} (22... Be7 $142) 23. Qc3 {[%emt 0:04:44]} (23. Bc4 $142 Rc8 (23... Bb6 $2 24. Qxb6 Rxb6 25. Bxb6 $18) 24. Qxd6 (24. Qa7 $2 Rc7 $19) 24... Qxd6 25. Rxd5) 23... Qe6 $16 {[%emt 0:08:18]} 24. a4 {[%emt 0:05:32]} Bb6 {[%emt 0:03:20]} ({Black should play} 24... h6 $14) 25. Bxb6 {[%emt 0:13:32]} Rxb6 {[%emt 0:00:05]} 26. Qd2 {[%emt 0:03:58]} ({Better is} 26. a5 Rd6 27. b5 axb5 28. Qc5 (28. Bxb5 h6 $16)) 26... Bc6 {[%emt 0:11:06]} (26... Rd6 $142) 27. a5 $36 {[%emt 0:06:40][%mdl 2048] White is really pushing.} Rbb8 {[%emt 0:00:07] Wards off Qd8+} 28. Qd6 {[%emt 0:00:43]} Bb5 {[%emt 0:03:11]} 29. Bxb5 {[%emt 0:06:15]} Rxb5 {[%emt 0:00:18]} 30. Qxe6 {[%emt 0:00:14]} fxe6 {[%emt 0:00:05][%mdl 4096] Endgame. KRR-KRR} 31. Rd7 {[%emt 0:00:08]} Rxb4 {[%emt 0:00:25]} 32. h3 {[%emt 0:00:06] Hoping for Rcc7. White is more active.} Rf8 $2 {[%emt 0:05:06][%mdl 8192] Black cannot hold the game after this.} (32... Kh8 $16 {might work better.}) 33. Rcc7 $18 {[%emt 0:00:39]} Rb1+ {[%emt 0:00:13]} 34. Kh2 {[%emt 0:00:06]} Rxf2 {[%emt 0:00:25]} 35. Rxg7+ {[%emt 0:00:05]} Kf8 {[%emt 0:00:20]} 36. Rxh7 {[%emt 0:00:21][%cal Rc7c8] [#]} Kg8 {[%emt 0:00:05]} 37. Rcg7+ {[%emt 0:02:00]} Kf8 {[%emt 0:00:17]} 38. Ra7 {[%emt 0:00:15]} Kg8 {[%emt 0:00:15] Prevents Rh8+} 39. Rhe7 {[%emt 0:04:57]} Ra1 $2 {[%emt 0:01:52]} (39... Kf8 40. Rec7 (40. Rxe6 Rbb2 $14) 40... Rb8 41. Rxa6 (41. Rh7 Kg8 $18) 41... e4) 40. Ra8+ {[%emt 0:00:00]} (40. Rxe6 Rxa5 41. Kg3 (41. Rexa6 Rxa6 42. Rxa6 Kf8 $16) 41... Rf7 42. Rg6+ (42. Raxa6 Rxa6 43. Rxa6 Kg7 $14) 42... Kf8 (42... Kh7 43. Raxa6 Rxa6 44. Rxa6 $16) 43. Raxa6 Rxa6 44. Rxa6 Kg7 $18) 40... Rf8 {[%emt 0:00:00]} 41. Rxa6 {[%emt 0:03:18][%cal Oa6a7] Black must now prevent Raa7!} Rf6 {[%emt 0:03:59]} (41... e4 $142 42. h4 (42. Raxe6 Rxa5 43. Rxe4 Rf6 $18) (42. Rexe6 Ra4 $18) 42... e3 43. Raxe6 (43. Rexe6 Rf4 $18) 43... Rxa5 44. Rxe3 Rf7 45. Rg3+ Kf8) 42. Ra8+ {[%emt 0:00:19]} ({Weaker is} 42. Raxe6 Rxe6 43. Rxe6 Rxa5 $18) 42... Rf8 {[%emt 0:00:01]} 43. Raa7 {[%emt 0:00:19] Threatening mate with Rg7+.} Rf6 {[%emt 0:00:15]} 44. Re8+ $2 {[%emt 0:00:16] Weighted Error Value: White=0.06 (flawless) /Black=0.58.  Loses game:     	---       	Black=1      Mistake:       	White=2     	Black=6      Inaccurate:     	---       	Black=3      OK:         	White=16    	Black=9      Best:        	White=8     	Black=2      Strong:       	White=1     	---} (44. Rg7+ {mates} Kh8 45. Rgc7 Kg8 46. a6 e4 47. Ra8+ Rf8 48. Rxf8+ Kxf8 49. a7) 1-0

[Event "Srdja Dragasevic Memorial-A 2024"]
[Site "Cetinje"]
[Date "2024.06.23"]
[Round "3.5"]
[White "Tomic, Aleksandar"]
[Black "Djukic, Nikola"]
[Result "1/2-1/2"]
[ECO "A45"]
[WhiteElo "2388"]
[BlackElo "2532"]
[Annotator "RC"]
[PlyCount "21"]
[EventDate "2024.06.23"]
[EventType "swiss"]
[EventCountry "MNE"]
[SourceTitle "playchess.com"]
[Source "ChessBase"]
[SourceQuality "1"]
[TimeControl "40/5400+30:1800+30"]

1. d4 {[%emt 0:09:29]} Nf6 {[%emt 0:00:08]} 2. Bf4 {[%emt 0:00:12]} g6 {[%emt 0:00:08]} 3. Nc3 {[%emt 0:00:07]} d5 {[%emt 0:00:06]} 4. Nb5 {[%emt 0:01:15]} Na6 {[%emt 0:00:13]} 5. e3 {[%emt 0:00:05]} Bg7 {[%emt 0:00:34]} 6. Nc3 {[%emt 0:00:41]} Nb8 {[%emt 0:00:27]} 7. Nb5 {[%emt 0:00:34]} Na6 {[%emt 0:00:07]} 8. Nc3 {[%emt 0:00:11]} Nb8 {[%emt 0:17:43]} 9. Nb5 {[%emt 0:00:16]} Na6 {[%emt 0:00:08]} 10. Nc3 {[%emt 0:02:29]} Nb8 {[%emt 0:00:21]} 11. Nb5 {[%emt 0:00:06]} 1/2-1/2